fUST/lending_fUST_20250724
["ID","MTS","AMOUNT","RATE_DAILY","PERIOD"]
[374474283,1753314659055,-475.02,0.00021369,2]
[374474284,1753314659064,-460.0,0.00021369,2]
[374474285,1753314659073,-460.0,0.00021369,2]
[374474286,1753314659082,-355.62,0.00021369,2]
[374474287,1753314659092,-548.74,0.00021369,2]
[374474288,1753314659101,-460.0,0.00021369,2]
[374474289,1753314659110,-460.0,0.00021369,2]
[374474290,1753314659119,-460.0,0.00021369,2]
[374474291,1753314659128,-460.0,0.00021369,2]
[374474292,1753314659136,-460.0,0.00021369,2]
[374474293,1753314659146,-4973.74,0.00021369,2]
[374474294,1753314659155,-1293.95,0.00021369,2]
[374474295,1753314659164,-962.86,0.00021369,2]
[374474296,1753314659173,-460.0,0.00021369,2]
[374474297,1753314659183,-460.0,0.00021369,2]
[374474298,1753314659192,-460.0,0.00021369,2]
[374474299,1753314659201,-460.0,0.00021369,2]
[374474300,1753314659210,-460.0,0.00021369,2]
[374474301,1753314659219,-460.0,0.00021369,2]
[374474302,1753314659228,-460.0,0.00021369,2]
[374474303,1753314659238,-460.0,0.00021369,2]
[374474304,1753314659247,-460.0,0.00021369,2]
[374474305,1753314659256,-3048.31,0.00021369,2]
[374474306,1753314659265,-460.0,0.00021369,2]
[374474307,1753314659275,-460.0,0.00021369,2]
[374474308,1753314659284,-669.8,0.00021369,2]
[374474309,1753314659293,-583.82,0.00021369,2]
[374474310,1753314659303,-460.0,0.00021369,2]
[374474311,1753314659312,-460.0,0.00021369,2]
[374474312,1753314659321,-263.87615503,0.00021369,2]
[374474313,1753314659331,-1501.36,0.00021369,2]
[374474314,1753314659339,-460.0,0.00021369,2]
[374474315,1753314659350,-605.72,0.00021369,2]
[374474316,1753314659359,-532.09,0.00021369,2]
[374474317,1753314659368,-221.74639928,0.00021369,2]
[374474318,1753314659377,-475.12,0.00021369,2]
[374474319,1753314659386,-3025.38,0.00021369,2]
[374474320,1753314659396,-460.0,0.00021369,2]
[374474321,1753314659405,-352.30195339,0.00021369,2]
[374474322,1753314659415,-1011.1,0.00021369,2]
[374474323,1753314659424,-514.15,0.00021369,2]
[374474324,1753314659434,-460.0,0.00021369,2]
[374474325,1753314659443,-460.0,0.00021369,2]
[374474326,1753314659453,-5531.62,0.00021369,2]
[374474327,1753314659462,-460.0,0.00021369,2]
[374474328,1753314659472,-460.0,0.00021369,2]
[374474329,1753314659481,-460.0,0.00021369,2]
[374474330,1753314659490,-460.0,0.00021369,2]
[374474331,1753314659502,-1065.45,0.00021369,2]
[374474332,1753314659512,-536.39564788,0.00021369,2]
[374474333,1753314659522,-460.0,0.00021369,2]
[374474334,1753314659531,-460.0,0.00021369,2]
[374474335,1753314659541,-460.0,0.00021369,2]
[374474336,1753314659550,-2307.46,0.00021369,2]
[374474337,1753314659560,-1446.5,0.00021369,2]
[374474338,1753314659569,-460.0,0.00021369,2]
[374474339,1753314659579,-460.0,0.00021369,2]
[374474340,1753314659589,-460.0,0.00021369,2]
[374474341,1753314659599,-1009.01,0.00021369,2]
[374474342,1753314659610,-460.0,0.00021369,2]
[374474343,1753314659620,-486.6,0.00021369,2]
[374474344,1753314659630,-460.0,0.00021369,2]
[374474345,1753314659639,-460.0,0.00021369,2]
[374474346,1753314659649,-508.53,0.00021369,2]
[374474347,1753314659658,-460.0,0.00021369,2]
[374474348,1753314659667,-501.51,0.00021369,2]
[374474349,1753314659757,-2213.65,0.00021369,2]
[374474350,1753314659767,-460.0,0.00021369,2]
[374474351,1753314659776,-460.0,0.00021369,2]
[374474352,1753314659786,-460.0,0.00021369,2]
[374474353,1753314659795,-460.0,0.00021369,2]
[374474354,1753314659806,-460.0,0.00021369,2]
[374474355,1753314659816,-460.0,0.00021369,2]
[374474356,1753314659826,-460.0,0.00021369,2]
[374474357,1753314659836,-460.0,0.00021369,2]
[374474358,1753314659845,-625.58,0.00021369,2]
[374474359,1753314659855,-460.0,0.00021369,2]
[374474360,1753314659866,-809.48,0.00021369,2]
[374474361,1753314659876,-599.49,0.00021369,2]
[374474362,1753314659886,-1310.51,0.00021369,2]
[374474363,1753314659895,-460.0,0.00021369,2]
[374474364,1753314659905,-460.0,0.00021369,2]
[374474365,1753314659914,-938.09,0.00021369,2]
[374474366,1753314659924,-460.0,0.00021369,2]
[374474367,1753314659934,-3474.75606424,0.0002144,2]
[374474368,1753314659944,-151.0,0.000215,4]
[374474369,1753314659954,-192.0,0.00021512,5]
[374474370,1753314659963,-360.0,0.0002155,2]
[374474371,1753314659974,-1000.0,0.00021607,2]
[374474372,1753314659983,-2000.0,0.00021616,2]
[374474373,1753314659992,-2000.0,0.00021616,2]
[374474374,1753314660002,-151.0,0.00021638,2]
[374474375,1753314660011,-305.968633,0.00021638,2]
[374474376,1753314660021,-305.968633,0.00021638,2]
[374474377,1753314660033,-709.442211,0.00021638,2]
[374474378,1753314660042,-709.442211,0.00021638,2]
[374474379,1753314660052,-343.018147,0.00021638,2]
[374474380,1753314660062,-1129.88,0.00021643,2]
[374474381,1753314660072,-460.0,0.00021643,2]
[374474382,1753314660081,-503.83,0.00021643,2]
[374474383,1753314660091,-460.0,0.00021643,2]
[374474384,1753314660100,-460.0,0.00021643,2]
[374474385,1753314660109,-947.65,0.00021643,2]
[374474386,1753314660118,-460.0,0.00021643,2]
[374474387,1753314660128,-475.02,0.00021643,2]
[374474388,1753314660138,-460.0,0.00021643,2]
[374474389,1753314660147,-460.0,0.00021643,2]
[374474390,1753314660156,-548.74,0.00021643,2]
[374474391,1753314660165,-565.21579009,0.00021643,2]
[374474392,1753314660175,-460.0,0.00021643,2]
[374474393,1753314660185,-460.0,0.00021643,2]
[374474394,1753314660194,-460.0,0.00021643,2]
[374474395,1753314660204,-460.0,0.00021643,2]
[374474396,1753314660213,-460.0,0.00021643,2]
[374474397,1753314660223,-4973.74,0.00021643,2]
[374474398,1753314660233,-1293.95,0.00021643,2]
[374474399,1753314660242,-962.86,0.00021643,2]
[374474400,1753314660253,-460.0,0.00021643,2]
[374474401,1753314660262,-460.0,0.00021643,2]
[374474402,1753314660272,-460.0,0.00021643,2]
[374474403,1753314660282,-460.0,0.00021643,2]
[374474404,1753314660292,-460.0,0.00021643,2]
[374474405,1753314660301,-460.0,0.00021643,2]
[374474406,1753314660311,-3048.31,0.00021643,2]
[374474407,1753314660320,-460.0,0.00021643,2]
[374474408,1753314660330,-460.0,0.00021643,2]
[374474409,1753314660340,-669.8,0.00021643,2]
[374474410,1753314660351,-583.82,0.00021643,2]
[374474411,1753314660360,-460.0,0.00021643,2]
[374474412,1753314660369,-460.0,0.00021643,2]
[374474413,1753314660379,-1501.36,0.00021643,2]
[374474414,1753314660389,-605.72,0.00021643,2]
[374474415,1753314660400,-532.09,0.00021643,2]
[374474416,1753314660409,-475.12,0.00021643,2]
[374474417,1753314660419,-3025.38,0.00021643,2]
[374474418,1753314660428,-400.68965166,0.00021643,2]
[374474419,1753314660438,-1011.1,0.00021643,2]
[374474420,1753314660447,-514.15,0.00021643,2]
[374474421,1753314660457,-460.0,0.00021643,2]
[374474422,1753314660466,-460.0,0.00021643,2]
[374474423,1753314660476,-5531.62,0.00021643,2]
[374474424,1753314660485,-373.05461303,0.00021643,2]
[374474425,1753314660495,-460.0,0.00021643,2]
[374474426,1753314660507,-387.77337239,0.00021643,2]
[374474427,1753314660516,-460.0,0.00021643,2]
[374474428,1753314660526,-1065.45,0.00021643,2]
[374474429,1753314660535,-460.0,0.00021643,2]
[374474430,1753314660546,-394.56,0.00021643,2]
[374474431,1753314660555,-460.0,0.00021643,2]
[374474432,1753314660564,-2307.46,0.00021643,2]
[374474433,1753314660574,-1446.5,0.00021643,2]
[374474434,1753314660583,-460.0,0.00021643,2]
[374474435,1753314660594,-460.0,0.00021643,2]
[374474436,1753314660604,-1009.01,0.00021643,2]
[374474437,1753314660613,-460.0,0.00021643,2]
[374474438,1753314660622,-486.6,0.00021643,2]
[374474439,1753314660632,-460.0,0.00021643,2]
[374474440,1753314660641,-460.0,0.00021643,2]
[374474441,1753314660650,-508.53,0.00021643,2]
[374474442,1753314660660,-460.0,0.00021643,2]
[374474443,1753314660670,-501.51,0.00021643,2]
[374474444,1753314660680,-2213.65,0.00021643,2]
[374474445,1753314660690,-460.0,0.00021643,2]
[374474446,1753314660699,-470.97273932,0.00021643,2]
[374474447,1753314660708,-460.0,0.00021643,2]
[374474448,1753314660717,-460.0,0.00021643,2]
[374474449,1753314660727,-460.0,0.00021643,2]
[374474450,1753314660736,-460.0,0.00021643,2]
[374474451,1753314660746,-460.0,0.00021643,2]
[374474452,1753314660755,-460.0,0.00021643,2]
[374474453,1753314660764,-625.58,0.00021643,2]
[374474454,1753314660773,-460.0,0.00021643,2]
[374474455,1753314660783,-809.48,0.00021643,2]
[374474456,1753314660792,-599.49,0.00021643,2]
[374474457,1753314660802,-1310.51,0.00021643,2]
[374474458,1753314660811,-460.0,0.00021643,2]
[374474459,1753314660820,-460.0,0.00021643,2]
[374474460,1753314660830,-938.09,0.00021643,2]
[374474461,1753314660839,-460.0,0.00021643,2]
[374474462,1753314660850,-2117.26317104,0.00021664,2]
[374474463,1753314660860,-500.0,0.00021664,2]
[374474464,1753314660869,-2000.0,0.00021664,2]
[374474465,1753314660879,-1500.0,0.00021693,2]
[374474466,1753314660889,-1500.0,0.00021693,2]
[374474467,1753314660900,-676.12839974,0.00021713,2]
[374474468,1753314660910,-200.0,0.00021738,2]
[374474469,1753314660919,-500.0,0.00021739,2]
[374474470,1753314660929,-500.0,0.00021739,2]
[374474471,1753314660939,-500.0,0.00021739,2]
[374474472,1753314660949,-500.0,0.00021739,2]
[374474473,1753314660958,-500.0,0.00021739,2]
[374474474,1753314660968,-500.0,0.00021739,2]
[374474475,1753314660978,-500.0,0.00021739,2]
[374474476,1753314660988,-500.0,0.00021739,2]
[374474477,1753314660998,-571.75859334,0.00021739,2]
[374474478,1753314661008,-102855.52557483,0.00021739,2]
[374474479,1753314661017,-739.733643,0.00021739,2]
[374474480,1753314661027,-500.0,0.0002175,2]
[374474481,1753314661036,-158.58221854,0.0002175,2]
[374474482,1753314661045,-501.60468577,0.0002175,2]
[374474483,1753314661055,-500.0,0.0002175,2]
[374474484,1753314661064,-158.27645893,0.0002175,2]
[374474485,1753314661073,-170.81692496,0.0002175,2]
[374474486,1753314661082,-350.0,0.00021753,2]
[374474487,1753314661091,-500.0,0.00021753,2]
[374474488,1753314661101,-500.0,0.00021753,2]
[374474489,1753314661111,-500.0,0.00021753,2]
[374474490,1753314661120,-1000.0,0.000218,3]
[374474491,1753314661129,-192.0,0.0002182,5]
[374474492,1753314661138,-500.0,0.00021912,2]
[374474493,1753314661147,-1129.88,0.00021917,2]
[374474494,1753314661157,-460.0,0.00021917,2]
[374474495,1753314661166,-503.83,0.00021917,2]
[374474496,1753314661175,-460.0,0.00021917,2]
[374474497,1753314661184,-947.65,0.00021917,2]
[374474498,1753314661193,-248.91,0.00021917,2]
[374474499,1753314661203,-475.02,0.00021917,2]
[374474500,1753314661212,-460.0,0.00021917,2]
[374474501,1753314661221,-460.0,0.00021917,2]
[374474502,1753314661231,-548.74,0.00021917,2]
[374474503,1753314661241,-460.0,0.00021917,2]
[374474504,1753314661251,-460.0,0.00021917,2]
[374474505,1753314661260,-460.0,0.00021917,2]
[374474506,1753314661271,-4973.74,0.00021917,2]
[374474507,1753314661280,-1293.95,0.00021917,2]
[374474508,1753314661290,-962.86,0.00021917,2]
[374474509,1753314661375,-460.0,0.00021917,2]
[374474510,1753314661385,-460.0,0.00021917,2]
[374474511,1753314661395,-460.0,0.00021917,2]
[374474512,1753314661404,-460.0,0.00021917,2]
[374474513,1753314661414,-3048.31,0.00021917,2]
[374474514,1753314661423,-460.0,0.00021917,2]
[374474515,1753314661433,-460.0,0.00021917,2]
[374474516,1753314661443,-669.8,0.00021917,2]
[374474517,1753314661452,-583.82,0.00021917,2]
[374474518,1753314661461,-460.0,0.00021917,2]
[374474519,1753314661471,-1501.36,0.00021917,2]
[374474520,1753314661481,-605.72,0.00021917,2]
[374474521,1753314661492,-532.09,0.00021917,2]
[374474522,1753314661502,-475.12,0.00021917,2]
[374474523,1753314661514,-3025.38,0.00021917,2]
[374474524,1753314661524,-1011.1,0.00021917,2]
[374474525,1753314661533,-514.15,0.00021917,2]
[374474526,1753314661543,-460.0,0.00021917,2]
[374474527,1753314661553,-5531.62,0.00021917,2]
[374474528,1753314661562,-460.0,0.00021917,2]
[374474529,1753314661572,-460.0,0.00021917,2]
[374474530,1753314661583,-1065.45,0.00021917,2]
[374474531,1753314661596,-460.0,0.00021917,2]
[374474532,1753314661606,-460.0,0.00021917,2]
[374474533,1753314661615,-2307.46,0.00021917,2]
[374474534,1753314661625,-1446.5,0.00021917,2]
[374474535,1753314661635,-460.0,0.00021917,2]
[374474536,1753314661644,-1009.01,0.00021917,2]
[374474537,1753314661653,-460.0,0.00021917,2]
[374474538,1753314661663,-486.6,0.00021917,2]
[374474539,1753314661672,-460.0,0.00021917,2]
[374474540,1753314661682,-508.53,0.00021917,2]
[374474541,1753314661692,-460.0,0.00021917,2]
[374474542,1753314661702,-501.51,0.00021917,2]
[374474543,1753314661712,-2213.65,0.00021917,2]
[374474544,1753314661721,-460.0,0.00021917,2]
[374474545,1753314661731,-393.93213674,0.00021917,2]
[374474546,1753314661740,-460.0,0.00021917,2]
[374474547,1753314661750,-460.0,0.00021917,2]
[374474548,1753314661759,-460.0,0.00021917,2]
[374474549,1753314661769,-223.65,0.00021917,2]
[374474550,1753314661779,-460.0,0.00021917,2]
[374474551,1753314661788,-625.58,0.00021917,2]
[374474552,1753314661798,-460.0,0.00021917,2]
[374474553,1753314661807,-809.48,0.00021917,2]
[374474554,1753314661816,-599.49,0.00021917,2]
[374474555,1753314661826,-1310.51,0.00021917,2]
[374474556,1753314661835,-460.0,0.00021917,2]
[374474557,1753314661845,-460.0,0.00021917,2]
[374474558,1753314661855,-938.09,0.00021917,2]
[374474559,1753314661864,-500.0,0.0002199,2]
[374474560,1753314661874,-150.0,0.00021993,2]
[374474561,1753314661883,-151.0,0.00021999,7]
[374474562,1753314661892,-4374.86,0.00022,7]
[374474563,1753314661902,-1917.94,0.00022,7]
[374474564,1753314661911,-20218.47,0.00022,7]
[374474565,1753314661920,-1000.0,0.00022091,2]
[374474566,1753314661930,-380.0,0.00022098,2]
[374474567,1753314661939,-192.0,0.00022128,5]
[374474568,1753314661948,-429.674968,0.00022137,2]
[374474569,1753314661958,-429.674968,0.00022137,2]
[374474570,1753314661967,-429.674968,0.00022137,2]
[374474571,1753314661977,-429.674968,0.00022137,2]
[374474572,1753314661987,-429.674968,0.00022137,2]
[374474573,1753314661999,-2500.0,0.00022164,2]
[374474574,1753314662008,-1129.88,0.00022191,2]
[374474575,1753314662018,-460.0,0.00022191,2]
[374474576,1753314662027,-503.83,0.00022191,2]
[374474577,1753314662036,-460.0,0.00022191,2]
[374474578,1753314662046,-947.65,0.00022191,2]
[374474579,1753314662055,-475.02,0.00022191,2]
[374474580,1753314662064,-460.0,0.00022191,2]
[374474581,1753314662073,-460.0,0.00022191,2]
[374474582,1753314662082,-548.74,0.00022191,2]
[374474583,1753314662091,-460.0,0.00022191,2]
[374474584,1753314662102,-460.0,0.00022191,2]
[374474585,1753314662111,-460.0,0.00022191,2]
[374474586,1753314662120,-4973.74,0.00022191,2]
[374474587,1753314662130,-1293.95,0.00022191,2]
[374474588,1753314662139,-962.86,0.00022191,2]
[374474589,1753314662148,-460.0,0.00022191,2]
[374474590,1753314662157,-460.0,0.00022191,2]
[374474591,1753314662166,-460.0,0.00022191,2]
[374474592,1753314662175,-460.0,0.00022191,2]
[374474593,1753314662184,-151.0,0.00022191,7]
[374474594,1753314662194,-3048.31,0.00022191,2]
[374474595,1753314662204,-460.0,0.00022191,2]
[374474596,1753314662213,-460.0,0.00022191,2]
[374474597,1753314662224,-669.8,0.00022191,2]
[374474598,1753314662235,-583.82,0.00022191,2]
[374474599,1753314662246,-460.0,0.00022191,2]
[374474600,1753314662256,-1501.36,0.00022191,2]
[374474601,1753314662266,-605.72,0.00022191,2]
[374474602,1753314662276,-532.09,0.00022191,2]
[374474603,1753314662286,-475.12,0.00022191,2]
[374474604,1753314662297,-3025.38,0.00022191,2]
[374474605,1753314662307,-1011.1,0.00022191,2]
[374474606,1753314662317,-514.15,0.00022191,2]
[374474607,1753314662326,-460.0,0.00022191,2]
[374474608,1753314662335,-5531.62,0.00022191,2]
[374474609,1753314662345,-460.0,0.00022191,2]
[374474610,1753314662354,-460.0,0.00022191,2]
[374474611,1753314662363,-1065.45,0.00022191,2]
[374474612,1753314662373,-605.83,0.00022191,2]
[374474613,1753314662382,-460.0,0.00022191,2]
[374474614,1753314662392,-2307.46,0.00022191,2]
[374474615,1753314662403,-1446.5,0.00022191,2]
[374474616,1753314662412,-460.0,0.00022191,2]
[374474617,1753314662421,-1009.01,0.00022191,2]
[374474618,1753314662431,-305.968633,0.00022191,7]
[374474619,1753314662440,-460.0,0.00022191,2]
[374474620,1753314662449,-486.6,0.00022191,2]
[374474621,1753314662459,-305.968633,0.00022191,7]
[374474622,1753314662468,-460.0,0.00022191,2]
[374474623,1753314662478,-508.53,0.00022191,2]
[374474624,1753314662488,-501.51,0.00022191,2]
[374474625,1753314662498,-2213.65,0.00022191,2]
[374474626,1753314662510,-460.0,0.00022191,2]
[374474627,1753314662519,-460.0,0.00022191,2]
[374474628,1753314662529,-460.0,0.00022191,2]
[374474629,1753314662538,-460.0,0.00022191,2]
[374474630,1753314662547,-460.0,0.00022191,2]
[374474631,1753314662558,-625.58,0.00022191,2]
[374474632,1753314662568,-460.0,0.00022191,2]
[374474633,1753314662577,-809.48,0.00022191,2]
[374474634,1753314662588,-599.49,0.00022191,2]
[374474635,1753314662598,-1310.51,0.00022191,2]
[374474636,1753314662608,-709.442211,0.00022191,7]
[374474637,1753314662618,-460.0,0.00022191,2]
[374474638,1753314662627,-709.442211,0.00022191,7]
[374474639,1753314662637,-460.0,0.00022191,2]
[374474640,1753314662646,-343.018147,0.00022191,7]
[374474641,1753314662656,-151.0,0.000222,9]
[374474642,1753314662666,-26097.44,0.000222,2]
[374474643,1753314662676,-151.0,0.000222,9]
[374474644,1753314662685,-600.0,0.00022233,2]
[374474645,1753314662695,-380.96517336,0.00022241,2]
[374474646,1753314662704,-1000.0,0.00022287,2]
[374474647,1753314662713,-1000.0,0.00022287,2]
[374474648,1753314662723,-176.13411078,0.00022287,2]
[374474649,1753314662732,-500.0,0.00022298,2]
[374474650,1753314662741,-10794.23626693,0.000224,2]
[374474651,1753314662750,-192.0,0.00022436,5]
[374474652,1753314662759,-1129.88,0.00022465,2]
[374474653,1753314662768,-460.0,0.00022465,2]
[374474654,1753314662778,-503.83,0.00022465,2]
[374474655,1753314662787,-947.65,0.00022465,2]
[374474656,1753314662796,-475.02,0.00022465,2]
[374474657,1753314662881,-389.33480681,0.00022465,2]
[374474658,1753314662890,-460.0,0.00022465,2]
[374474659,1753314662899,-548.74,0.00022465,2]
[374474660,1753314662910,-460.0,0.00022465,2]
[374474661,1753314662919,-4973.74,0.00022465,2]
[374474662,1753314662929,-1293.95,0.00022465,2]
[374474663,1753314662938,-962.86,0.00022465,2]
[374474664,1753314662947,-460.0,0.00022465,2]
[374474665,1753314662956,-460.0,0.00022465,2]
[374474666,1753314662966,-460.0,0.00022465,2]
[374474667,1753314662975,-1738.3,0.00022465,2]
[374474668,1753314662984,-3048.31,0.00022465,2]
[374474669,1753314662993,-460.0,0.00022465,2]
[374474670,1753314663002,-460.0,0.00022465,2]
[374474671,1753314663012,-669.8,0.00022465,2]
[374474672,1753314663021,-583.82,0.00022465,2]
[374474673,1753314663030,-460.0,0.00022465,2]
[374474674,1753314663041,-1501.36,0.00022465,2]
[374474675,1753314663050,-605.72,0.00022465,2]
[374474676,1753314663060,-532.09,0.00022465,2]
[374474677,1753314663070,-475.12,0.00022465,2]
[374474678,1753314663080,-3025.38,0.00022465,2]
[374474679,1753314663090,-1011.1,0.00022465,2]
[374474680,1753314663099,-514.15,0.00022465,2]
[374474681,1753314663109,-460.0,0.00022465,2]
[374474682,1753314663119,-5531.62,0.00022465,2]
[374474683,1753314663129,-460.0,0.00022465,2]
[374474684,1753314663138,-460.0,0.00022465,2]
[374474685,1753314663148,-1065.45,0.00022465,2]
[374474686,1753314663157,-460.0,0.00022465,2]
[374474687,1753314663167,-2307.46,0.00022465,2]
[374474688,1753314663176,-1446.5,0.00022465,2]
[374474689,1753314663185,-460.0,0.00022465,2]
[374474690,1753314663195,-1009.01,0.00022465,2]
[374474691,1753314663204,-460.0,0.00022465,2]
[374474692,1753314663214,-486.6,0.00022465,2]
[374474693,1753314663224,-460.0,0.00022465,2]
[374474694,1753314663233,-508.53,0.00022465,2]
[374474695,1753314663243,-2213.65,0.00022465,2]
[374474696,1753314663252,-501.51,0.00022465,2]
[374474697,1753314663261,-460.0,0.00022465,2]
[374474698,1753314663271,-460.0,0.00022465,2]
[374474699,1753314663281,-460.0,0.00022465,2]
[374474700,1753314663291,-460.0,0.00022465,2]
[374474701,1753314663300,-625.58,0.00022465,2]
[374474702,1753314663310,-460.0,0.00022465,2]
[374474703,1753314663319,-809.48,0.00022465,2]
[374474704,1753314663329,-599.49,0.00022465,2]
[374474705,1753314663338,-1310.51,0.00022465,2]
[374474706,1753314663348,-460.0,0.00022465,2]
[374474707,1753314663358,-564.78536028,0.00022465,2]
[374474708,1753314663367,-500.0,0.00022473,2]
[374474709,1753314663377,-500.55403074,0.00022473,2]
[374474710,1753314663386,-501.4575332,0.00022473,2]
[374474711,1753314663396,-500.0,0.00022473,2]
[374474712,1753314663406,-500.0,0.00022473,2]
[374474713,1753314663415,-500.0,0.00022473,2]
[374474714,1753314663425,-200.0,0.00022489,2]
[374474715,1753314663435,-153363.00119759,0.0002249,7]
[374474716,1753314663444,-241.160911,0.0002249,7]
[374474717,1753314663454,-154.75365,0.0002249,7]
[374474718,1753314663463,-154.75365,0.0002249,7]
[374474719,1753314663473,-406.413998,0.0002249,7]
[374474720,1753314663483,-406.413998,0.0002249,7]
[374474721,1753314663492,-151.0,0.0002249,7]
[374474722,1753314663502,-151.0,0.0002249,7]
[374474723,1753314663514,-677.335954,0.0002249,7]
[374474724,1753314663524,-677.335954,0.0002249,7]
[374474725,1753314663533,-151.0,0.0002249,7]
[374474726,1753314663542,-292.544388,0.0002249,7]
[374474727,1753314663554,-250.20288,0.0002249,7]
[374474728,1753314663564,-250.20288,0.0002249,7]
[374474729,1753314663573,-151.0,0.0002249,7]
[374474730,1753314663584,-305.968633,0.0002249,7]
[374474731,1753314663593,-305.968633,0.0002249,7]
[374474732,1753314663604,-709.442211,0.0002249,7]
[374474733,1753314663613,-709.442211,0.0002249,7]
[374474734,1753314663622,-739.733643,0.0002249,7]
[374474735,1753314663632,-343.018147,0.0002249,7]
[374474736,1753314663642,-452868.13804612,0.000225,2]
[374474737,1753314663651,-241.160911,0.000225,7]
[374474738,1753314663660,-154.75365,0.000225,7]
[374474739,1753314663670,-154.75365,0.000225,7]
[374474740,1753314663679,-151.0,0.000225,7]
[374474741,1753314663688,-151.0,0.000225,7]
[374474742,1753314663698,-406.413998,0.000225,7]
[374474743,1753314663707,-406.413998,0.000225,7]
[374474744,1753314663717,-151.0,0.000225,7]
[374474745,1753314663727,-151.0,0.000225,7]
[374474746,1753314663736,-151.0,0.000225,7]
[374474747,1753314663746,-151.0,0.000225,7]
[374474748,1753314663755,-161.106766,0.000225,7]
[374474749,1753314663765,-161.106766,0.000225,7]
[374474750,1753314663775,-273.821254,0.000225,7]
[374474751,1753314663784,-151.0,0.000225,7]
[374474752,1753314663793,-151.0,0.000225,7]
[374474753,1753314663803,-675.405241,0.000225,7]
[374474754,1753314663812,-675.405241,0.000225,7]
[374474755,1753314663822,-193.776851,0.000225,7]
[374474756,1753314663832,-193.776851,0.000225,7]
[374474757,1753314663841,-677.335954,0.000225,7]
[374474758,1753314663850,-579.618732,0.000225,7]
[374474759,1753314663860,-677.335954,0.000225,7]
[374474760,1753314663870,-151.0,0.000225,7]
[374474761,1753314663880,-579.618732,0.000225,7]
[374474762,1753314663889,-250.20288,0.000225,7]
[374474763,1753314663898,-250.20288,0.000225,7]
[374474764,1753314663907,-151.0,0.000225,2]
[374474765,1753314663917,-151.0,0.000225,7]
[374474766,1753314663927,-151.0,0.000225,7]
[374474767,1753314663936,-305.968633,0.000225,7]
[374474768,1753314663946,-305.968633,0.000225,7]
[374474769,1753314663954,-709.442211,0.000225,7]
[374474770,1753314663963,-709.442211,0.000225,7]
[374474771,1753314663972,-739.733643,0.000225,7]
[374474772,1753314663982,-343.018147,0.000225,7]
[374474773,1753314663991,-513.41333819,0.00022567,5]
[374474774,1753314664001,-575.93,0.00022577,5]
[374474775,1753314664010,-676.12839974,0.00022594,2]
[374474776,1753314664020,-590.2622925,0.000226,6]
[374474777,1753314664029,-151.0,0.000226,9]
[374474778,1753314664040,-575.93,0.00022677,2]
[374474779,1753314664049,-317.53,0.00022708,2]
[374474780,1753314664059,-564.68571756,0.00022712,2]
[374474781,1753314664068,-982.67043181,0.00022715,2]
[374474782,1753314664077,-1129.88,0.00022739,2]